fUSD/lending_fUSD_20240127
["ID","MTS","AMOUNT","RATE_DAILY","PERIOD"]
[312850802,1706357443573,-725.91819625,0.000328,2]
[312850803,1706357443584,-12584.57966197,0.000328,2]
[312850804,1706357443599,-514.59376721,0.000328,2]
[312850805,1706357443616,-4831.27972534,0.000328,2]
[312850806,1706357443627,-902.19827239,0.000328,2]
[312850807,1706357443655,-4272.69298,0.000328,2]
[312850808,1706357445889,-3631.89476457,0.000328,2]
[312850809,1706357445901,-5167.1423729,0.000328,2]
[312850810,1706357445944,-20020.94620973,0.000328,2]
[312850811,1706357446057,-2644.48683847,0.000328,2]
[312850812,1706357446067,-169.45,0.00032876,2]
[312850813,1706357446077,-166.7,0.00032877,2]
[312850814,1706357446086,-154.53,0.00032877,15]
[312850815,1706357446097,-2582.06478449,0.00032882,4]
[312850816,1706357446106,-151.94880006,0.00032929,2]
[312850817,1706357446115,-750.0,0.00033,3]
[312850818,1706357446125,-641.0,0.000332,7]
[312850819,1706357446135,-3191.26397536,0.00033272,2]
[312850820,1706357446144,-160.0,0.00033283,2]
[312850821,1706357446153,-840.0,0.0003339,2]
[312850822,1706357446166,-150.0,0.00033551,2]
[312850823,1706357446176,-178.0,0.00033566,2]
[312850824,1706357446186,-578.68,0.00033675,2]
[312850825,1706357446196,-266.73385108,0.00034,5]
[312850826,1706357446206,-152.91141913,0.000343,2]
[312850827,1706357446215,-1647.2281191,0.00034311,4]
[312850828,1706357446236,-920.07016333,0.00034311,4]
[312850829,1706357446248,-919.84914807,0.00034311,4]
[312850855,1706358631945,-1092.0,0.00024999,2]
[312850856,1706358631955,-550.0,0.00025,3]
[312850858,1706358631964,-600.0,0.00027,3]
[312850859,1706358631973,-650.0,0.00029,3]
[312850860,1706358631982,-152.31915787,0.000299,2]
[312850861,1706358631991,-155.0,0.0003,2]
[312850862,1706358632000,-426.72,0.00030466,2]
[312850863,1706358632009,-152.31915784,0.00030879,2]
[312850864,1706358632019,-150.0,0.00031214,3]
[312850865,1706358632027,-9069.659406,0.00031215,4]
[312850866,1706358632037,-152.31915784,0.00031858,2]
[312850867,1706358632046,-2000.0,0.00032106,2]
[312850868,1706358632055,-435.96,0.00032209,2]
[312850869,1706358632065,-7289.45397202,0.00032295,2]
[312850870,1706358632076,-1324.59602798,0.00032295,2]
[312850871,1706358632086,-227.16397202,0.00032327,2]
[312850872,1706358632098,-22.83602798,0.00032327,2]
[312850873,1706358632106,-150.99,0.00032327,30]
[312850874,1706358632115,-157.97,0.00032339,2]
[312850875,1706358632125,-1000.0,0.00032348,2]
[312850876,1706358632134,-159.83,0.00032377,2]
[312850877,1706358632143,-250.0,0.000324,2]
[312850878,1706358632152,-178.93,0.00032503,2]
[312850879,1706358632161,-446.9,0.0003254,2]
[312850880,1706358632170,-1208.8,0.00032597,2]
[312850881,1706358632178,-200.0,0.00032633,2]
[312850882,1706358632188,-250.0,0.00032633,2]
[312850883,1706358632197,-426.72,0.0003273,2]
[312850884,1706358632206,-155.42693317,0.00032799,4]
[312850885,1706358632215,-400.0,0.00032799,3]
[312850886,1706358632224,-152.31915784,0.00032837,2]
[312850887,1706358632233,-154.53,0.00032877,15]
[312850888,1706358632242,-151.94880006,0.00032929,2]
[312850889,1706358632251,-437.31151923,0.00032949,2]
[312850890,1706358632260,-451.32,0.00032949,20]
[312850891,1706358632269,-25079.70145529,0.00032951,2]
[312850892,1706358632278,-711.21,0.00032952,2]
[312850893,1706358632287,-716.26,0.00032989,2]
[312850894,1706358632297,-867.69,0.00033042,2]
[312850896,1706358632306,-732.02,0.00033043,2]
[312850898,1706358632315,-152.31915784,0.00033816,2]
[312850900,1706358632324,-442.75,0.00033973,2]
[312850902,1706358632333,-328.38,0.00033973,2]
[312850904,1706358632342,-328.38,0.00033973,2]
[312850906,1706358632351,-492.0,0.00034139,3]
[312850908,1706358632360,-6012.5957,0.00034209,2]
[312850911,1706358632369,-644.44647,0.000343,2]
[312850914,1706358632379,-500.0,0.00034309,2]
[312850916,1706358632388,-500.0,0.00034309,2]
[312850917,1706358632398,-500.0,0.00034309,2]
[312850918,1706358632407,-500.0,0.00034309,2]
[312850919,1706358632415,-500.0,0.00034309,2]
[312850920,1706358632425,-500.0,0.00034309,2]
[312850921,1706358632435,-500.0,0.00034309,2]
[312850922,1706358632443,-500.0,0.00034309,2]
[312850923,1706358632453,-500.0,0.00034309,2]
[312850924,1706358632462,-500.0,0.00034309,2]
[312850925,1706358632471,-500.0,0.00034309,2]
[312850926,1706358632480,-500.0,0.00034309,2]
[312850927,1706358632490,-500.0,0.00034309,2]
[312850928,1706358632499,-500.0,0.00034309,2]
[312850929,1706358632508,-300.0,0.00034309,2]
[312850930,1706358632517,-500.0,0.00034309,2]
[312850931,1706358632526,-500.0,0.00034309,2]
[312850932,1706358632535,-500.0,0.00034309,2]
[312850933,1706358632544,-500.0,0.00034309,2]
[312850934,1706358632553,-500.0,0.00034309,2]
[312850935,1706358632565,-500.0,0.00034309,2]
[312850936,1706358632573,-500.0,0.00034309,2]
[312850937,1706358632583,-500.0,0.00034309,2]
[312850938,1706358632592,-500.0,0.00034309,2]
[312850939,1706358632601,-500.0,0.00034309,2]
[312850940,1706358632610,-500.0,0.00034309,2]
[312850941,1706358632620,-500.0,0.00034309,2]
[312850942,1706358632629,-500.0,0.00034309,2]
[312850943,1706358632639,-500.0,0.00034309,2]
[312850944,1706358632649,-500.0,0.00034309,2]
[312850945,1706358632657,-500.0,0.00034309,2]
[312850946,1706358632666,-500.0,0.00034309,2]
[312850947,1706358632675,-150.0,0.00034309,2]
[312850948,1706358632685,-500.0,0.00034309,2]
[312850949,1706358632694,-500.0,0.00034309,2]
[312850950,1706358632702,-500.0,0.00034309,2]
[312850951,1706358632711,-500.0,0.00034309,2]
[312850952,1706358632720,-500.0,0.00034309,2]
[312850953,1706358632729,-500.0,0.00034309,2]
[312850954,1706358632738,-500.0,0.00034309,2]
[312850955,1706358632747,-500.0,0.00034309,2]
[312850956,1706358632756,-500.0,0.00034309,2]
[312850957,1706358632764,-500.0,0.00034309,2]
[312850958,1706358632773,-500.0,0.00034309,2]
[312850959,1706358632782,-500.0,0.00034309,2]
[312850960,1706358632792,-500.0,0.00034309,2]
[312850961,1706358632801,-500.0,0.00034309,2]
[312850962,1706358632810,-500.0,0.00034309,2]
[312850963,1706358632819,-500.0,0.00034309,2]
[312850964,1706358632828,-500.0,0.00034309,2]
[312850965,1706358632837,-500.0,0.00034309,2]
[312850966,1706358632846,-500.0,0.00034309,2]
[312850967,1706358632855,-500.0,0.00034309,2]
[312850968,1706358632864,-500.0,0.00034309,2]
[312850969,1706358632873,-500.0,0.00034309,2]
[312850970,1706358632881,-500.0,0.00034309,2]
[312850971,1706358632890,-500.0,0.00034309,2]
[312850972,1706358632899,-500.0,0.00034309,2]
[312850973,1706358632908,-500.0,0.00034309,2]
[312850974,1706358632917,-500.0,0.00034309,2]
[312850975,1706358632926,-500.0,0.00034309,2]
[312850976,1706358632934,-500.0,0.00034309,2]
[312850977,1706358632943,-500.0,0.00034309,2]
[312850978,1706358632952,-500.0,0.00034309,2]
[312850979,1706358632961,-500.0,0.00034309,2]
[312850980,1706358632969,-500.0,0.00034309,2]
[312850981,1706358632978,-500.0,0.00034309,2]
[312850982,1706358632987,-500.0,0.00034309,2]
[312850983,1706358632996,-500.0,0.00034309,2]
[312850984,1706358633005,-500.0,0.00034309,2]
[312850985,1706358633014,-500.0,0.00034309,2]
[312850986,1706358633023,-500.0,0.00034309,2]
[312850987,1706358633032,-500.0,0.00034309,2]
[312850988,1706358633041,-500.0,0.00034309,2]
[312850989,1706358633050,-500.0,0.00034309,2]
[312850990,1706358633060,-500.0,0.00034309,2]
[312850991,1706358633068,-500.0,0.00034309,2]
[312850992,1706358633077,-500.0,0.00034309,2]
[312850993,1706358633086,-500.0,0.00034309,2]
[312850994,1706358633096,-500.0,0.00034309,2]
[312850995,1706358633104,-500.0,0.00034309,2]
[312850996,1706358633113,-500.0,0.00034309,2]
[312850997,1706358633122,-500.0,0.00034309,2]
[312850998,1706358633131,-500.0,0.00034309,2]
[312850999,1706358633139,-500.0,0.00034309,2]
[312851000,1706358633148,-500.0,0.00034309,2]
[312851001,1706358633157,-500.0,0.00034309,2]
[312851002,1706358633167,-500.0,0.00034309,2]
[312851003,1706358633176,-500.0,0.00034309,2]
[312851004,1706358633185,-500.0,0.00034309,2]
[312851005,1706358633194,-500.0,0.00034309,2]
[312851006,1706358633202,-500.0,0.00034309,2]
[312851007,1706358633211,-500.0,0.00034309,2]
[312851008,1706358633220,-500.0,0.00034309,2]
[312851009,1706358633229,-500.0,0.00034309,2]
[312851010,1706358633237,-500.0,0.00034309,2]
[312851011,1706358633246,-500.0,0.00034309,2]
[312851012,1706358633255,-500.0,0.00034309,2]
[312851013,1706358633263,-500.0,0.00034309,2]
[312851014,1706358633272,-500.0,0.00034309,2]
[312851015,1706358633281,-500.0,0.00034309,2]
[312851016,1706358633290,-500.0,0.00034309,2]
[312851017,1706358633299,-500.0,0.00034309,2]
[312851018,1706358633308,-500.0,0.00034309,2]
[312851019,1706358633317,-500.0,0.00034309,2]
[312851020,1706358633326,-500.0,0.00034309,2]
[312851021,1706358633334,-500.0,0.00034309,2]
[312851022,1706358633344,-500.0,0.00034309,2]
[312851023,1706358633353,-500.0,0.00034309,2]
[312851024,1706358633362,-500.0,0.00034309,2]
[312851025,1706358633370,-500.0,0.00034309,2]
[312851026,1706358633379,-500.0,0.00034309,2]
[312851027,1706358633389,-500.0,0.00034309,2]
[312851028,1706358633403,-500.0,0.00034309,2]
[312851029,1706358633412,-500.0,0.00034309,2]
[312851030,1706358633421,-500.0,0.00034309,2]
[312851031,1706358633430,-500.0,0.00034309,2]
[312851032,1706358633440,-500.0,0.00034309,2]
[312851033,1706358633449,-500.0,0.00034309,2]
[312851034,1706358633458,-500.0,0.00034309,2]
[312851035,1706358633467,-500.0,0.00034309,2]
[312851036,1706358633476,-500.0,0.00034309,2]
[312851037,1706358633486,-500.0,0.00034309,2]
[312851038,1706358633495,-500.0,0.00034309,2]
[312851039,1706358633504,-500.0,0.00034309,2]
[312851040,1706358633513,-500.0,0.00034309,2]
[312851041,1706358633528,-500.0,0.00034309,2]
[312851042,1706358633538,-500.0,0.00034309,2]
[312851043,1706358633547,-500.0,0.00034309,2]
[312851044,1706358633558,-500.0,0.00034309,2]
[312851045,1706358633568,-500.0,0.00034309,2]
[312851046,1706358633577,-500.0,0.00034309,2]
[312851047,1706358633587,-500.0,0.00034309,2]
[312851048,1706358633596,-500.0,0.00034309,2]
[312851049,1706358633606,-500.0,0.00034309,2]
[312851050,1706358633616,-500.0,0.00034309,2]
[312851051,1706358633625,-500.0,0.00034309,2]
[312851052,1706358633634,-500.0,0.00034309,2]
[312851053,1706358633645,-500.0,0.00034309,2]
[312851054,1706358633655,-500.0,0.00034309,2]
[312851055,1706358633664,-500.0,0.00034309,2]
[312851056,1706358633673,-500.0,0.00034309,2]
[312851057,1706358633682,-500.0,0.00034309,2]
[312851058,1706358633692,-500.0,0.00034309,2]
[312851059,1706358633700,-500.0,0.00034309,2]
[312851060,1706358633709,-500.0,0.00034309,2]
[312851061,1706358633718,-500.0,0.00034309,2]
[312851062,1706358633727,-500.0,0.00034309,2]
[312851063,1706358633736,-500.0,0.00034309,2]
[312851064,1706358633745,-500.0,0.00034309,2]
[312851065,1706358633754,-500.0,0.00034309,2]
[312851066,1706358633763,-500.0,0.00034309,2]
[312851067,1706358633773,-500.0,0.00034309,2]
[312851068,1706358633782,-500.0,0.00034309,2]
[312851069,1706358633791,-500.0,0.00034309,2]
[312851070,1706358633800,-500.0,0.00034309,2]
[312851071,1706358633810,-500.0,0.00034309,2]
[312851072,1706358633818,-500.0,0.00034309,2]
[312851073,1706358633827,-500.0,0.00034309,2]
[312851074,1706358633836,-500.0,0.00034309,2]
[312851075,1706358633846,-500.0,0.00034309,2]
[312851076,1706358633855,-500.0,0.00034309,2]
[312851077,1706358633864,-500.0,0.00034309,2]
[312851078,1706358633873,-500.0,0.00034309,2]
[312851079,1706358633882,-500.0,0.00034309,2]
[312851080,1706358633891,-500.0,0.00034309,2]
[312851081,1706358633900,-500.0,0.00034309,2]
[312851082,1706358633909,-500.0,0.00034309,2]
[312851083,1706358633918,-500.0,0.00034309,2]
[312851084,1706358633927,-500.0,0.00034309,2]
[312851085,1706358633936,-500.0,0.00034309,2]
[312851086,1706358633945,-500.0,0.00034309,2]
[312851087,1706358633954,-500.0,0.00034309,2]
[312851088,1706358633963,-500.0,0.00034309,2]
[312851089,1706358633972,-500.0,0.00034309,2]
[312851090,1706358633981,-500.0,0.00034309,2]
[312851091,1706358633990,-500.0,0.00034309,2]
[312851092,1706358633998,-500.0,0.00034309,2]
[312851093,1706358634007,-500.0,0.00034309,2]
[312851094,1706358634016,-500.0,0.00034309,2]
[312851095,1706358634025,-500.0,0.00034309,2]
[312851096,1706358634034,-500.0,0.00034309,2]
[312851097,1706358634043,-500.0,0.00034309,2]
[312851098,1706358634052,-500.0,0.00034309,2]
[312851099,1706358634061,-500.0,0.00034309,2]
[312851100,1706358634070,-500.0,0.00034309,2]
[312851101,1706358634078,-500.0,0.00034309,2]
[312851102,1706358634089,-500.0,0.00034311,2]
[312851103,1706358634098,-1512.8525695,0.00034311,4]
[312851104,1706358634107,-223.19869272,0.00034313,4]
[312851105,1706358634116,-2245.92342083,0.00034351,2]
[312851106,1706358634130,-3882.14213159,0.00034351,2]
[312851107,1706358634141,-15720.0164804,0.00034351,2]
[312851108,1706358634152,-818.26057678,0.00034351,2]
[312851109,1706358634163,-485.80288671,0.00034351,2]
[312851110,1706358634173,-2330.9205257,0.00034351,2]
[312851111,1706358634184,-2139.15,0.00034351,2]
[312851112,1706358634195,-408.25,0.00034351,2]
[312851113,1706358634206,-634.478075,0.00034351,2]
[312851114,1706358634221,-464.24685184,0.00034351,2]
[312851121,1706358638315,-1109.71646126,0.00034284,6]
[312851122,1706358638324,-16508.55296554,0.00034351,2]
[312851123,1706358638335,-19768.64508619,0.00034351,2]
[312851124,1706358638346,-559.56142071,0.00034351,2]
[312851126,1706358638357,-976.559396,0.00034351,2]
[312851360,1706358640577,-259.63085533,0.00034351,2]
[312851362,1706358640590,-1934.13325,0.00034351,2]
[312851364,1706358640603,-500.54994624,0.00034351,2]
[312851381,1706358640746,-455.20087013,0.00034351,2]
[312851389,1706358640803,-821.32309621,0.00034351,2]
[312851427,1706358641507,-133208.9522648,0.00034351,2]
[312851428,1706358641517,-402.65,0.00034384,2]
[312851429,1706358641526,-402.65,0.00034384,2]
[312851430,1706358641536,-402.65,0.00034384,2]
[312851431,1706358641545,-258.63,0.00034384,2]
[312851432,1706358641557,-943.45,0.00034384,2]
[312851433,1706358641566,-943.45,0.00034384,2]
[312851434,1706358641575,-759.24,0.00034384,2]
[312851435,1706358641585,-800.0,0.00034385,5]
[312851436,1706358641594,-800.0,0.00034385,5]
[312851437,1706358641605,-2193.5373,0.0003445,2]
[312851438,1706358641614,-310.80022153,0.00034451,2]
[312851439,1706358641632,-250.95393033,0.00034451,2]
[312851453,1706358644676,-355.772124,0.00034451,2]
[312851471,1706358646074,-155.0,0.0003435,2]
[312851473,1706358646084,-107395.19352414,0.00034451,2]
[312851474,1706358646094,-31299.7573,0.00034451,2]
[312851476,1706358646103,-239.45781894,0.0003454,2]
[312851478,1706358646113,-486.66955203,0.00034549,2]
[312851480,1706358646122,-201.85769498,0.00034549,4]
[312851482,1706358646137,-235.38203165,0.00034549,2]
[312851484,1706358646146,-196.98832126,0.00034549,4]
[312851486,1706358646156,-848.13970828,0.00034549,4]
[312851487,1706358646165,-25689.90412185,0.0003455,4]
[312851489,1706358646174,-85132.43094288,0.0003455,2]
[312851491,1706358646186,-6899.25010599,0.0003455,2]
[312851493,1706358646197,-13277.38991971,0.0003455,2]
[312851495,1706358646207,-1052.25459755,0.00034651,4]
[312851497,1706358646216,-12847.03225908,0.0003466,4]
[312851513,1706359636103,-279.75239148,0.00024657,2]
[312851514,1706359636123,-154.65,0.00024658,2]
[312851515,1706359636144,-152.31915784,0.000286,2]
[312851516,1706359636163,-732.34,0.00028634,2]
[312851517,1706359636181,-724.43,0.00028654,2]
[312851518,1706359636200,-733.08,0.00028686,2]
[312851519,1706359636219,-727.19,0.000287,2]
[312851520,1706359636238,-722.04,0.000287,2]
[312851521,1706359636257,-1292.41671196,0.000287,2]
[312851522,1706359637213,-212.58328804,0.000287,2]
[312851523,1706359637236,-4881.0,0.000287,2]
[312851524,1706359637257,-155.0,0.0003,2]
[312851525,1706359637278,-152.31915784,0.00030465,2]
[312851526,1706359637299,-384.04,0.00031306,2]
[312851527,1706359637319,-152.31915784,0.00032331,2]
[312851528,1706359637339,-151.94880006,0.00032927,2]
[312851529,1706359637358,-22.6661581,0.00032984,2]
[312851530,1706359831208,-268.3291844,0.00024738,2]
[312851531,1706359831234,-155.0,0.00031504,2]
[312851532,1706359831259,-1861.08,0.00031505,120]
[312851533,1706359831288,-364.83,0.00031605,2]
[312851534,1706359831315,-151.94880006,0.00032927,2]
[312851535,1706359831340,-500.0,0.00032984,2]
[312851536,1706359831365,-18994.07836632,0.00032984,4]
[312851537,1706359831390,-284.6471464,0.00032984,4]
[312851538,1706359831416,-155.0,0.00032984,4]
[312851539,1706359831441,-155.0,0.00032984,4]
[312851540,1706359831477,-886.39651552,0.00032984,4]
[312851541,1706359831503,-227.3338419,0.00032984,2]
[312851542,1706359831528,-6999.0126062,0.00033,10]
[312851543,1706359831553,-154.53,0.00033003,15]
[312851544,1706359831579,-735.71,0.00033242,2]
[312851545,1706359831604,-228.85,0.00033242,10]
[312851546,1706359831629,-723.07,0.00033262,2]
[312851547,1706359831660,-800.0,0.00033269,2]
[312851548,1706359831687,-200.0,0.00033392,2]
[312851549,1706359831869,-250.0,0.00033454,2]
[312851550,1706359831896,-3127.0,0.0003381,2]
[312851551,1706359831924,-364.83,0.00033869,2]
[312851552,1706359831949,-228.85,0.00034057,10]
[312851553,1706359831976,-152.31915784,0.00034196,2]
[312851554,1706359832011,-238.72171166,0.00034251,14]
[312851555,1706359832040,-1554.1314,0.00034251,2]
[312851556,1706359832069,-402.65,0.00034384,2]
[312851558,1706359832096,-402.65,0.00034384,2]
[312851559,1706359832123,-402.65,0.00034384,2]
[312851560,1706359832152,-402.65,0.00034384,2]
[312851562,1706359832181,-943.45,0.00034384,2]
[312851563,1706359832206,-402.65,0.00034384,2]
[312851564,1706359832232,-401.27,0.00034384,2]
[312851565,1706359832258,-943.45,0.00034384,2]
[312851566,1706359832282,-943.45,0.00034384,2]
[312851567,1706359832307,-943.45,0.00034384,2]
[312851568,1706359832333,-943.45,0.00034384,2]
[312851569,1706359832358,-943.45,0.00034384,2]
[312851570,1706359832384,-943.45,0.00034384,2]
[312851571,1706359832409,-943.45,0.00034384,2]
[312851572,1706359832435,-943.45,0.00034384,2]
[312851573,1706359832460,-943.45,0.00034384,2]
[312851574,1706359832485,-943.45,0.00034384,2]
[312851575,1706359832508,-943.45,0.00034384,2]
[312851578,1706359832533,-943.45,0.00034384,2]
[312851580,1706359832558,-943.45,0.00034384,2]
[312851583,1706359832583,-943.45,0.00034384,2]
[312851586,1706359832606,-800.0,0.00034384,5]
[312851590,1706359832631,-3935.96531215,0.0003445,2]
[312851593,1706359832655,-385.15009443,0.0003445,4]
[312851596,1706359832681,-437.31151923,0.0003445,2]
[312851599,1706359832705,-1908.22070995,0.0003445,5]
[312851601,1706359832731,-150.0,0.0003454,2]
[312851603,1706359832754,-537.03872,0.0003455,2]
[312851606,1706359832783,-5202.4581,0.00034574,2]
[312851608,1706359832808,-369.19859473,0.00034622,2]
[312851611,1706359832832,-2624.88799229,0.00034659,4]
[312851614,1706359832856,-5485.98825306,0.0003466,4]
[312851617,1706359832880,-300.02,0.0003466,2]
[312851620,1706359832904,-3302.58843747,0.0003466,2]
[312851623,1706359832927,-208.0607197,0.00034663,90]
[312851626,1706359832952,-6884.4161283,0.00034674,2]
[312851629,1706359832980,-4318.22,0.00034688,10]
[312851632,1706359833004,-3598.52,0.00034688,10]
[312851635,1706359833028,-2998.77,0.00034688,10]
[312851638,1706359833055,-165.45185599,0.00034698,14]
[312851641,1706359833078,-3051.9411681,0.00034698,2]
[312851644,1706359833103,-89132.9620207,0.00034698,2]
[312851647,1706359833128,-3685.5532303,0.00034722,2]
[312851651,1706359833153,-228.85,0.00034871,10]
[312851653,1706359833177,-1173.9172,0.000349,2]
[312851654,1706359833200,-7450.9649,0.000349,2]
[312851655,1706359833225,-369.19859466,0.00034992,2]
[312851656,1706359833250,-631.79683257,0.00035,4]
[312851657,1706359833273,-10003.45393428,0.00035,2]
[312851659,1706359833297,-15881.89605928,0.00035,7]
[312851662,1706359833322,-1843.28,0.0003515,5]
[312851664,1706359833345,-923.59,0.00035342,2]
[312851665,1706359833369,-369.19859466,0.00035363,2]
[312851666,1706359833392,-434.0,0.0003554,2]
[312851667,1706359833417,-228.85,0.00035686,10]
[312851668,1706359833446,-369.19859466,0.00035733,2]
[312851669,1706359833472,-2960.45026362,0.00035824,15]
[312851670,1706359833496,-4093.19913073,0.00035824,15]
[312851671,1706359833521,-3634.965976,0.00035824,15]
[312851672,1706359833546,-4591.96214112,0.00035824,15]
[312851673,1706359833570,-1587.67468486,0.00035824,15]
[312851674,1706359833594,-1793.9,0.00035824,5]
[312851675,1706359833621,-6370.06456938,0.00036,30]
[312851676,1706359833647,-152.31915784,0.00036061,2]
[312851677,1706359833671,-369.19859466,0.00036103,2]
[312851678,1706359833696,-364.83,0.00036133,2]
[312851679,1706359833720,-369.19859466,0.00036473,2]
[312851680,1706359833745,-228.85,0.000365,10]
[312851681,1706359833770,-369.19859466,0.00036844,2]
[312851682,1706359833795,-377.41485025,0.00036999,30]
[312851683,1706359833925,-669.93369051,0.00037,7]
[312851684,1706359833949,-1797.228,0.00037169,2]
[312851685,1706359833974,-369.19859466,0.00037214,2]
[312851686,1706359833998,-800.0,0.00037428,2]
[312851687,1706359834023,-200.0,0.00037567,2]
[312851688,1706359834047,-369.19859466,0.00037584,2]
[312851689,1706359834071,-344.78041424,0.00037873,30]
[312851690,1706359834093,-3513.45401706,0.0003788,2]
[312851691,1706359834117,-344.78041424,0.00037899,30]
[312851692,1706359834140,-377.41485025,0.00037899,30]
[312851693,1706359834163,-377.41485025,0.00037899,30]
[312851694,1706359834188,-152.31915784,0.00037926,2]
[312851695,1706359834212,-369.19859466,0.00037954,2]
[312851696,1706359834235,-904.32183634,0.00038,2]
[312851697,1706359834258,-2347.46759022,0.00038,2]
[312851698,1706359834282,-4000.01040237,0.00038,2]
[312851699,1706359834305,-369.19859466,0.00038325,2]
[312851700,1706359834329,-150.0,0.00038356,2]
[312851701,1706359834353,-364.83,0.00038396,2]
[312851702,1706359834376,-369.19859466,0.00038695,2]
[312851703,1706359834399,-168.87144924,0.0003888,2]
[312851704,1706359834423,-168.87144922,0.0003888,2]
[312851705,1706359834445,-282.4270994,0.0003898,2]
[312851706,1706359834468,-1430.80823834,0.00039,2]
[312851707,1706359834492,-369.19859466,0.00039065,2]
[312851708,1706359834515,-151.497,0.0003907,7]
[312851709,1706359834539,-171.92,0.0003926,2]
[312851710,1706359834563,-150.0,0.00039452,2]
[312851711,1706359834587,-150.0,0.00039452,2]
[312851712,1706359834612,-150.0,0.00039452,2]
[312851713,1706359834636,-150.0,0.00039452,2]
[312851714,1706359834660,-150.0,0.00039452,2]
[312851715,1706359834685,-150.0,0.00039452,2]
[312851716,1706359834709,-150.0,0.00039452,2]
[312851717,1706359834734,-150.0,0.00039452,2]
[312851718,1706359834758,-150.0,0.00039452,2]
[312851719,1706359834782,-300.0,0.00039452,2]
[312851720,1706359834807,-537.03873,0.0003955,2]
[312851721,1706359834834,-409.25,0.00039726,2]
[312851722,1706359834858,-419.17,0.00039726,2]
[312851723,1706359834882,-294.83,0.00039726,2]
[312851724,1706359834906,-150.0,0.00039726,2]
[312851725,1706359834935,-150.0,0.00039726,2]
[312851726,1706359834961,-152.47,0.00039726,2]
[312851727,1706359834991,-292.31,0.00039726,2]
[312851728,1706359835017,-152.31915784,0.00039792,2]
[312851729,1706359835052,-168.87144922,0.00039906,2]
[312851730,1706359835078,-250.0,0.00039962,2]
[312851731,1706359835102,-150.0,0.00039962,2]
[312851732,1706359835126,-150.0,0.00039999,2]
[312851733,1706359835151,-354.5664068,0.00039999,7]
[312851734,1706359835176,-681.0,0.0004,5]
[312851735,1706359835200,-800.00863621,0.0004,60]
[312851736,1706359835223,-2250.0,0.0004,2]
[312851737,1706359835247,-11700.30597492,0.0004,7]
[312851738,1706359835270,-385.95212228,0.0004,120]
[312851739,1706359835294,-631.9668,0.0004,120]
[312851740,1706359835318,-3000.0,0.0004,2]
[312851741,1706359835356,-150.0,0.000401,2]
[312851742,1706359835366,-250.0,0.00040236,2]
[312851743,1706359835374,-250.0,0.0004051,2]
[312851744,1706359835383,-11.43054169,0.0004051,2]
[312851745,1706359835394,-164.92575908,0.0004051,2]
[312851746,1706359835403,-364.83,0.0004066,2]
[312851747,1706359835412,-500.0,0.00040754,7]
[312851748,1706359835423,-500.0,0.00040754,7]
[312851749,1706359835431,-500.0,0.00040754,7]
[312851750,1706359835440,-295.26,0.00040754,7]
[312851751,1706359835450,-256.88607131,0.00040784,2]
[312851752,1706359835459,-76.58717413,0.00041,2]
[312851753,1706359835469,-3844.52115975,0.00041,2]
[312851754,1706359835480,-713.07366266,0.00041,2]
[312851755,1706359835492,-658.34702874,0.00041,2]